[Event "Late-Titled-Tuesday-Blitz-January-16-2024"]
[Site "Chess.com"]
[Date "2024.01.16"]
[Round "10"]
[White "Rdeux42"]
[Black "pr1105"]
[Result "1-0"]
[WhiteElo "2456"]
[BlackElo "2266"]
[TimeControl "180+1"]
[EndTime "15:55:03 PST"]
[Termination "Rdeux42 won by checkmate"]

1. d4 {[%clk 0:03:00.2]} 1... Nf6 {[%clk 0:02:35.3]} 2. Nf3 {[%clk 0:02:54.6]}
2... d5 {[%clk 0:02:22.5]} 3. g3 {[%clk 0:02:53.4]} 3... Bf5 {[%clk 0:02:22.2]}
4. Bg2 {[%clk 0:02:53.6]} 4... e6 {[%clk 0:02:19.7]} 5. O-O {[%clk 0:02:54]}
5... h6 {[%clk 0:02:20.1]} 6. c4 {[%clk 0:02:54.2]} 6... c6 {[%clk 0:02:14.2]}
7. Nc3 {[%clk 0:02:54.3]} 7... Nbd7 {[%clk 0:02:11.3]} 8. Qb3 {[%clk 0:02:52.5]}
8... Qb6 {[%clk 0:02:09.6]} 9. c5 {[%clk 0:02:52.9]} 9... Qxb3 {[%clk
0:02:07.3]} 10. axb3 {[%clk 0:02:53.8]} 10... a6 {[%clk 0:01:55.6]} 11. b4
{[%clk 0:02:54.2]} 11... O-O-O {[%clk 0:01:43.5]} 12. h4 {[%clk 0:02:49.9]}
12... Ne4 {[%clk 0:01:19.4]} 13. Bf4 {[%clk 0:02:44.2]} 13... Nxc3 {[%clk
0:01:02.9]} 14. bxc3 {[%clk 0:02:45.1]} 14... f6 {[%clk 0:01:03.2]} 15. h5
{[%clk 0:02:36]} 15... Bg4 {[%clk 0:00:56.1]} 16. Nd2 {[%clk 0:01:59.3]} 16...
Bxh5 {[%clk 0:00:54.5]} 17. e4 {[%clk 0:01:56.3]} 17... g5 {[%clk 0:00:53.1]}
18. Be3 {[%clk 0:01:55.8]} 18... Bg6 {[%clk 0:00:37.1]} 19. c4 {[%clk
0:01:46.2]} 19... dxe4 {[%clk 0:00:24.6]} 20. Nxe4 {[%clk 0:01:39.9]} 20... f5
{[%clk 0:00:23.8]} 21. Nd6+ {[%clk 0:01:35.4]} 21... Bxd6 {[%clk 0:00:23.3]} 22.
cxd6 {[%clk 0:01:36.3]} 22... Nf6 {[%clk 0:00:23.1]} 23. b5 {[%clk 0:01:28.2]}
23... axb5 {[%clk 0:00:19.1]} 24. cxb5 {[%clk 0:01:25.1]} 24... Nd5 {[%clk
0:00:15.8]} 25. bxc6 {[%clk 0:01:19.2]} 25... bxc6 {[%clk 0:00:16.4]} 26. Ra7
{[%clk 0:01:18.3]} 26... Rhe8 {[%clk 0:00:12.1]} 27. Rb1 {[%clk 0:01:15.7]}
27... Rd7 {[%clk 0:00:12.5]} 28. Ra8# {[%clk 0:01:15]} 1-0

[Event "Late-Titled-Tuesday-Blitz-January-16-2024"]
[Site "Chess.com"]
[Date "2024.01.16"]
[Round "10"]
[White "mortngabriel"]
[Black "AEMEffi"]
[Result "1-0"]
[WhiteElo "2511"]
[BlackElo "2361"]
[TimeControl "180+1"]
[EndTime "15:55:10 PST"]
[Termination "mortngabriel won on time"]

1. e4 {[%clk 0:03:00.9]} 1... e5 {[%clk 0:02:35.8]} 2. Nc3 {[%clk 0:02:52.4]}
2... Nf6 {[%clk 0:02:35.5]} 3. Bc4 {[%clk 0:02:52.7]} 3... Nc6 {[%clk
0:02:35.1]} 4. d3 {[%clk 0:02:53.1]} 4... Bb4 {[%clk 0:02:32.1]} 5. Ne2 {[%clk
0:02:53]} 5... d5 {[%clk 0:02:26.4]} 6. exd5 {[%clk 0:02:53.9]} 6... Nxd5 {[%clk
0:02:26.4]} 7. O-O {[%clk 0:02:53.4]} 7... Nxc3 {[%clk 0:02:24.1]} 8. bxc3
{[%clk 0:02:53.2]} 8... Bd6 {[%clk 0:02:23.7]} 9. f4 {[%clk 0:02:52.8]} 9... O-O
{[%clk 0:02:17.5]} 10. f5 {[%clk 0:02:34]} 10... Kh8 {[%clk 0:02:01.7]} 11. f6
{[%clk 0:02:27]} 11... Be6 {[%clk 0:01:14.4]} 12. Bg5 {[%clk 0:02:14.7]} 12...
g6 {[%clk 0:01:01]} 13. Bxe6 {[%clk 0:01:49.4]} 13... fxe6 {[%clk 0:01:00.8]}
14. Ng3 {[%clk 0:01:43.1]} 14... Rf7 {[%clk 0:00:45.4]} 15. Ne4 {[%clk
0:01:38.3]} 15... Bf8 {[%clk 0:00:45.2]} 16. Qd2 {[%clk 0:01:37.9]} 16... b5
{[%clk 0:00:21.6]} 17. Rab1 {[%clk 0:01:32.9]} 17... Rb8 {[%clk 0:00:18.5]} 18.
Bh6 {[%clk 0:01:28.9]} 18... b4 {[%clk 0:00:15.8]} 19. Ng5 {[%clk 0:01:28.5]}
19... Rxf6 {[%clk 0:00:15.2]} 20. Rxf6 {[%clk 0:01:22]} 20... Qxf6 {[%clk
0:00:12.3]} 21. Rf1 {[%clk 0:01:22.5]} 21... bxc3 {[%clk 0:00:09.6]} 22. Qxc3
{[%clk 0:01:20.3]} 22... Qxf1+ {[%clk 0:00:01.8]} 23. Kxf1 {[%clk 0:01:19.6]}
23... Bxh6 {[%clk 0:00:02.7]} 24. Nf7+ {[%clk 0:01:15.2]} 24... Kg7 {[%clk
0:00:02.5]} 25. Nxh6 {[%clk 0:01:15.8]} 1-0

[Event "Late-Titled-Tuesday-Blitz-January-16-2024"]
[Site "Chess.com"]
[Date "2024.01.16"]
[Round "10"]
[White "ccccvhhhj"]
[Black "Jarrahi2452"]
[Result "0-1"]
[WhiteElo "2513"]
[BlackElo "2632"]
[TimeControl "180+1"]
[EndTime "15:55:12 PST"]
[Termination "Jarrahi2452 won on time"]

1. e4 {[%clk 0:03:00.9]} 1... c5 {[%clk 0:02:58.8]} 2. Nf3 {[%clk 0:03:01.4]}
2... d6 {[%clk 0:02:58]} 3. d4 {[%clk 0:03:02]} 3... cxd4 {[%clk 0:02:57.9]} 4.
Nxd4 {[%clk 0:03:02.9]} 4... Nf6 {[%clk 0:02:58.4]} 5. Nc3 {[%clk 0:03:03.5]}
5... e5 {[%clk 0:02:58.3]} 6. Nb3 {[%clk 0:03:01.8]} 6... Nc6 {[%clk 0:02:57.2]}
7. Bg5 {[%clk 0:02:42.2]} 7... Be7 {[%clk 0:02:55.4]} 8. Qd2 {[%clk 0:02:41.4]}
8... Be6 {[%clk 0:02:53.4]} 9. O-O-O {[%clk 0:02:40.8]} 9... O-O {[%clk
0:02:52.9]} 10. f3 {[%clk 0:02:36.4]} 10... a5 {[%clk 0:02:49.8]} 11. a4 {[%clk
0:02:31.8]} 11... Rc8 {[%clk 0:02:32.3]} 12. Kb1 {[%clk 0:02:31.3]} 12... Nb4
{[%clk 0:02:30.7]} 13. h4 {[%clk 0:02:18.2]} 13... Qc7 {[%clk 0:02:17.9]} 14. h5
{[%clk 0:01:53.5]} 14... Rfd8 {[%clk 0:02:14.7]} 15. h6 {[%clk 0:01:50.5]} 15...
g6 {[%clk 0:02:14.5]} 16. Bd3 {[%clk 0:01:34.9]} 16... d5 {[%clk 0:02:12.5]} 17.
exd5 {[%clk 0:01:33.4]} 17... Nfxd5 {[%clk 0:02:10.4]} 18. Nxd5 {[%clk
0:01:22.5]} 18... Bxd5 {[%clk 0:02:02.1]} 19. Bxe7 {[%clk 0:01:22.5]} 19... Qxe7
{[%clk 0:02:01.9]} 20. Qe3 {[%clk 0:00:56.9]} 20... Bxb3 {[%clk 0:01:38.3]} 21.
cxb3 {[%clk 0:00:56.5]} 21... Rd4 {[%clk 0:01:36.1]} 22. Bc4 {[%clk 0:00:52.6]}
22... Rcd8 {[%clk 0:01:35.9]} 23. Rxd4 {[%clk 0:00:51.2]} 23... Rxd4 {[%clk
0:01:36.5]} 24. Re1 {[%clk 0:00:51.1]} 24... Qd7 {[%clk 0:01:31.1]} 25. Kc1
{[%clk 0:00:41.3]} 25... Na2+ {[%clk 0:01:25.8]} 26. Kb1 {[%clk 0:00:40.9]}
26... Nb4 {[%clk 0:01:26.3]} 27. Kc1 {[%clk 0:00:41.2]} 27... Qf5 {[%clk
0:01:20.9]} 0-1

[Event "Late-Titled-Tuesday-Blitz-January-16-2024"]
[Site "Chess.com"]
[Date "2024.01.16"]
[Round "10"]
[White "Piotrek1979"]
[Black "xakevicius91"]
[Result "0-1"]
[WhiteElo "2425"]
[BlackElo "2549"]
[TimeControl "180+1"]
[EndTime "15:55:19 PST"]
[Termination "xakevicius91 won by resignation"]

1. d4 {[%clk 0:03:00.9]} 1... Nf6 {[%clk 0:02:59.7]} 2. c4 {[%clk 0:03:00.3]}
2... e6 {[%clk 0:03:00]} 3. Nf3 {[%clk 0:03:00.6]} 3... b6 {[%clk 0:03:00.1]} 4.
g3 {[%clk 0:03:00.1]} 4... Bb7 {[%clk 0:03:00.7]} 5. Bg2 {[%clk 0:02:59.2]} 5...
Be7 {[%clk 0:03:01.4]} 6. Nc3 {[%clk 0:02:57.1]} 6... O-O {[%clk 0:03:00.9]} 7.
O-O {[%clk 0:02:53.8]} 7... Ne4 {[%clk 0:03:00.6]} 8. Bd2 {[%clk 0:02:51]} 8...
Nxd2 {[%clk 0:03:00.3]} 9. Qxd2 {[%clk 0:02:50.5]} 9... d6 {[%clk 0:03:00.6]}
10. b4 {[%clk 0:02:23.1]} 10... Nd7 {[%clk 0:02:58.3]} 11. a4 {[%clk 0:02:21.2]}
11... a5 {[%clk 0:02:56.2]} 12. b5 {[%clk 0:02:20.7]} 12... f5 {[%clk
0:02:50.9]} 13. Rae1 {[%clk 0:02:06.8]} 13... Qe8 {[%clk 0:02:50.2]} 14. e4
{[%clk 0:02:06.2]} 14... f4 {[%clk 0:02:50.7]} 15. e5 {[%clk 0:02:00.2]} 15...
dxe5 {[%clk 0:02:45.5]} 16. Nxe5 {[%clk 0:01:56]} 16... f3 {[%clk 0:02:42.6]}
17. Bh3 {[%clk 0:01:53.3]} 17... Nxe5 {[%clk 0:02:41.9]} 18. Rxe5 {[%clk
0:01:48.6]} 18... Bf6 {[%clk 0:02:40.9]} 19. Bxe6+ {[%clk 0:01:23.8]} 19... Kh8
{[%clk 0:02:39]} 20. Ree1 {[%clk 0:01:06.7]} 20... Qh5 {[%clk 0:02:34.6]} 21.
Nd5 {[%clk 0:01:02.8]} 21... Rae8 {[%clk 0:02:28.4]} 22. Nf4 {[%clk 0:01:00.6]}
22... Qh6 {[%clk 0:02:24.8]} 23. Qd3 {[%clk 0:00:44.5]} 23... Bg5 {[%clk
0:02:21.2]} 24. Bd5 {[%clk 0:00:40.9]} 24... Bxd5 {[%clk 0:02:14]} 25. Nxd5
{[%clk 0:00:40.5]} 25... Qh3 {[%clk 0:01:36.8]} 26. Nf4 {[%clk 0:00:07]} 26...
Bxf4 {[%clk 0:01:31]} 27. Qxf3 {[%clk 0:00:07.5]} 27... Bd6 {[%clk 0:01:24.4]}
28. Rxe8 {[%clk 0:00:06.5]} 28... Rxe8 {[%clk 0:01:23.2]} 29. Rc1 {[%clk
0:00:06.1]} 29... Rf8 {[%clk 0:01:15.8]} 30. Qg2 {[%clk 0:00:06.5]} 30... Qf5
{[%clk 0:01:15]} 31. Rc2 {[%clk 0:00:07.1]} 31... Qxc2 {[%clk 0:01:14.5]} 0-1

[Event "Late-Titled-Tuesday-Blitz-January-16-2024"]
[Site "Chess.com"]
[Date "2024.01.16"]
[Round "10"]
[White "maximnovik"]
[Black "GothamChess"]
[Result "1-0"]
[WhiteElo "2579"]
[BlackElo "2748"]
[TimeControl "180+1"]
[EndTime "15:55:31 PST"]
[Termination "maximnovik won by resignation"]

1. e4 {[%clk 0:03:00.9]} 1... d5 {[%clk 0:02:59.1]} 2. exd5 {[%clk 0:03:00]}
2... Qxd5 {[%clk 0:03:00]} 3. Nc3 {[%clk 0:03:00]} 3... Qa5 {[%clk 0:03:00.6]}
4. d4 {[%clk 0:03:00.2]} 4... Nf6 {[%clk 0:03:00.6]} 5. Nf3 {[%clk 0:03:00.3]}
5... Bf5 {[%clk 0:03:01]} 6. Ne5 {[%clk 0:02:53.8]} 6... c6 {[%clk 0:03:01]} 7.
Bc4 {[%clk 0:02:49.3]} 7... e6 {[%clk 0:03:00.6]} 8. g4 {[%clk 0:02:44.5]} 8...
Bg6 {[%clk 0:03:00.8]} 9. h4 {[%clk 0:02:43.4]} 9... Nbd7 {[%clk 0:03:01.4]} 10.
Nxd7 {[%clk 0:02:42.1]} 10... Nxd7 {[%clk 0:03:01.2]} 11. h5 {[%clk 0:02:36.3]}
11... Be4 {[%clk 0:03:01.3]} 12. O-O {[%clk 0:02:32.3]} 12... Bd5 {[%clk
0:03:00.4]} 13. Nxd5 {[%clk 0:02:32.4]} 13... cxd5 {[%clk 0:03:00.3]} 14. Bd3
{[%clk 0:02:32.9]} 14... O-O-O {[%clk 0:02:59.5]} 15. a4 {[%clk 0:02:32]} 15...
g6 {[%clk 0:02:55.3]} 16. Bd2 {[%clk 0:02:30.6]} 16... Qc7 {[%clk 0:02:54.2]}
17. h6 {[%clk 0:02:23.9]} 17... Kb8 {[%clk 0:02:44.2]} 18. Qf3 {[%clk
0:02:21.8]} 18... f5 {[%clk 0:02:30.7]} 19. Rfe1 {[%clk 0:02:17.9]} 19... Re8
{[%clk 0:01:58.1]} 20. a5 {[%clk 0:01:44.2]} 20... Bd6 {[%clk 0:01:40.5]} 21. a6
{[%clk 0:01:42.8]} 21... e5 {[%clk 0:01:09.3]} 22. Qxd5 {[%clk 0:01:37.7]} 22...
e4 {[%clk 0:01:03.8]} 23. Bb5 {[%clk 0:01:25.3]} 23... Nf6 {[%clk 0:00:59.8]}
24. Qxb7+ {[%clk 0:01:23.2]} 24... Qxb7 {[%clk 0:00:59.7]} 25. axb7 {[%clk
0:01:23]} 25... Ref8 {[%clk 0:00:26.7]} 26. g5 {[%clk 0:01:21.3]} 26... Ng4
{[%clk 0:00:17.7]} 27. Bc6 {[%clk 0:01:14.4]} 27... Rf7 {[%clk 0:00:15]} 28. Ra6
{[%clk 0:01:11.6]} 28... Rd8 {[%clk 0:00:09.7]} 29. Rea1 {[%clk 0:01:06.6]}
29... Bc5 {[%clk 0:00:05.7]} 30. Bf4+ {[%clk 0:00:59.6]} 1-0

[Event "Late-Titled-Tuesday-Blitz-January-16-2024"]
[Site "Chess.com"]
[Date "2024.01.16"]
[Round "10"]
[White "ChessSwole"]
[Black "IlanSchnaider"]
[Result "1-0"]
[WhiteElo "2677"]
[BlackElo "2790"]
[TimeControl "180+1"]
[EndTime "15:55:32 PST"]
[Termination "ChessSwole won on time"]

1. d4 {[%clk 0:03:00.9]} 1... Nf6 {[%clk 0:02:57.9]} 2. Nc3 {[%clk 0:03:00.2]}
2... d5 {[%clk 0:02:57.7]} 3. Bf4 {[%clk 0:03:00.8]} 3... c5 {[%clk 0:02:56.6]}
4. e4 {[%clk 0:03:00.6]} 4... Nxe4 {[%clk 0:02:55.9]} 5. Nxe4 {[%clk 0:03:00.7]}
5... dxe4 {[%clk 0:02:56]} 6. dxc5 {[%clk 0:03:01.4]} 6... Qa5+ {[%clk
0:02:56.5]} 7. c3 {[%clk 0:03:02.1]} 7... Qxc5 {[%clk 0:02:56.7]} 8. Qa4+ {[%clk
0:03:02.8]} 8... Nc6 {[%clk 0:02:57.1]} 9. Qxe4 {[%clk 0:03:03.1]} 9... g6
{[%clk 0:02:57.7]} 10. Nf3 {[%clk 0:02:59.8]} 10... Bg7 {[%clk 0:02:57.8]} 11.
Rd1 {[%clk 0:02:58.8]} 11... O-O {[%clk 0:02:53.8]} 12. Bc4 {[%clk 0:02:53.3]}
12... Bf5 {[%clk 0:02:52.3]} 13. Qe2 {[%clk 0:02:48.9]} 13... e5 {[%clk
0:02:46]} 14. Be3 {[%clk 0:02:47.3]} 14... Qe7 {[%clk 0:02:46.1]} 15. O-O {[%clk
0:02:44.3]} 15... Kh8 {[%clk 0:02:36.6]} 16. Bd5 {[%clk 0:02:32.4]} 16... Rad8
{[%clk 0:02:17.8]} 17. Qc4 {[%clk 0:02:30.8]} 17... Qc7 {[%clk 0:01:20.2]} 18.
Ng5 {[%clk 0:02:16.7]} 18... Rd7 {[%clk 0:01:02.2]} 19. Bc5 {[%clk 0:02:06]}
19... Na5 {[%clk 0:00:41.8]} 20. Qh4 {[%clk 0:02:05.9]} 20... h6 {[%clk
0:00:27.4]} 21. Bxf8 {[%clk 0:02:06.1]} 21... Bxf8 {[%clk 0:00:28.3]} 22. Ne4
{[%clk 0:01:40.1]} 22... Kg7 {[%clk 0:00:13.5]} 23. Ng3 {[%clk 0:01:38.1]} 23...
Be7 {[%clk 0:00:09.9]} 24. Nxf5+ {[%clk 0:01:37.6]} 24... gxf5 {[%clk
0:00:10.5]} 25. Qh3 {[%clk 0:01:35.2]} 25... Kg6 {[%clk 0:00:02.6]} 26. Qg3+
{[%clk 0:01:16.6]} 26... Kh7 {[%clk 0:00:02.4]} 27. Bxf7 {[%clk 0:01:15.3]}
27... Bg5 {[%clk 0:00:01.4]} 28. Be6 {[%clk 0:01:13.3]} 28... Rxd1 {[%clk
0:00:01.3]} 29. Bxf5+ {[%clk 0:01:13.9]} 29... Kg7 {[%clk 0:00:01.5]} 30. Rxd1
{[%clk 0:01:14.1]} 30... Kf6 {[%clk 0:00:01.7]} 31. Qf3 {[%clk 0:01:13.6]} 31...
Bf4 {[%clk 0:00:02.1]} 32. Qh5 {[%clk 0:01:10]} 32... Qh7 {[%clk 0:00:01.2]} 33.
Bxh7 {[%clk 0:01:09.8]} 1-0

[Event "Late-Titled-Tuesday-Blitz-January-16-2024"]
[Site "Chess.com"]
[Date "2024.01.16"]
[Round "10"]
[White "cristiancamilosoto"]
[Black "LUISMIGUELOV"]
[Result "1-0"]
[WhiteElo "2409"]
[BlackElo "2190"]
[TimeControl "180+1"]
[EndTime "15:55:46 PST"]
[Termination "cristiancamilosoto won on time"]

1. c4 {[%clk 0:02:57]} 1... c5 {[%clk 0:02:54]} 2. g3 {[%clk 0:02:55.7]} 2...
Nc6 {[%clk 0:02:52.4]} 3. Bg2 {[%clk 0:02:55.7]} 3... g6 {[%clk 0:02:53]} 4. Nc3
{[%clk 0:02:55.4]} 4... Bg7 {[%clk 0:02:53.4]} 5. Nf3 {[%clk 0:02:55.8]} 5...
Nf6 {[%clk 0:02:53.3]} 6. O-O {[%clk 0:02:56.4]} 6... h5 {[%clk 0:02:53]} 7. h3
{[%clk 0:02:54.6]} 7... d6 {[%clk 0:02:52.8]} 8. e3 {[%clk 0:02:54.1]} 8... Be6
{[%clk 0:02:52.6]} 9. b3 {[%clk 0:02:53.8]} 9... Qc8 {[%clk 0:02:49.1]} 10. Ng5
{[%clk 0:02:53.7]} 10... Bd7 {[%clk 0:02:48.4]} 11. d4 {[%clk 0:02:52.1]} 11...
cxd4 {[%clk 0:02:47.9]} 12. exd4 {[%clk 0:02:53]} 12... O-O {[%clk 0:02:45.9]}
13. Bb2 {[%clk 0:02:51.9]} 13... a5 {[%clk 0:02:40.1]} 14. Rc1 {[%clk
0:02:50.7]} 14... Bh6 {[%clk 0:02:25.6]} 15. h4 {[%clk 0:02:47.3]} 15... Bg4
{[%clk 0:02:25.2]} 16. f3 {[%clk 0:02:44.2]} 16... Bf5 {[%clk 0:02:23.4]} 17.
Nd5 {[%clk 0:02:42.7]} 17... Qd8 {[%clk 0:02:10.6]} 18. Ne3 {[%clk 0:02:29.6]}
18... Bd7 {[%clk 0:01:59.3]} 19. Re1 {[%clk 0:02:28.5]} 19... Re8 {[%clk
0:01:53.5]} 20. f4 {[%clk 0:02:27.5]} 20... Ng4 {[%clk 0:01:49]} 21. Nxg4 {[%clk
0:02:26.2]} 21... Bxg4 {[%clk 0:01:48.5]} 22. Bf3 {[%clk 0:02:26.5]} 22... Bxf3
{[%clk 0:01:43.9]} 23. Qxf3 {[%clk 0:02:27.4]} 23... Qd7 {[%clk 0:01:38.9]} 24.
d5 {[%clk 0:02:25.5]} 24... Nb4 {[%clk 0:01:37.5]} 25. a3 {[%clk 0:02:22.2]}
25... Na6 {[%clk 0:01:15.6]} 26. Qc3 {[%clk 0:02:20.1]} 26... f6 {[%clk
0:01:11.8]} 27. Ne6 {[%clk 0:02:17.6]} 27... b6 {[%clk 0:01:07]} 28. Qc2 {[%clk
0:02:14.3]} 28... Kh7 {[%clk 0:01:03.8]} 29. f5 {[%clk 0:02:13.2]} 29... Rg8
{[%clk 0:00:57.6]} 30. Rcd1 {[%clk 0:02:02.3]} 30... g5 {[%clk 0:00:55.8]} 31.
hxg5 {[%clk 0:02:00.5]} 31... Bxg5 {[%clk 0:00:55.6]} 32. Kf2 {[%clk 0:01:59.4]}
32... Nc5 {[%clk 0:00:53.9]} 33. Rh1 {[%clk 0:01:56.3]} 33... h4 {[%clk
0:00:49.2]} 34. Qe2 {[%clk 0:01:54.7]} 34... Nxe6 {[%clk 0:00:37.1]} 35. Qh5+
{[%clk 0:01:41.9]} 35... Kg7 {[%clk 0:00:21.8]} 36. fxe6 {[%clk 0:01:41.9]}
36... Qe8 {[%clk 0:00:21.5]} 37. Qxg5+ {[%clk 0:01:41.7]} 37... Qg6 {[%clk
0:00:19.4]} 38. Qxg6+ {[%clk 0:01:40.4]} 38... Kxg6 {[%clk 0:00:19.2]} 39. Rxh4
{[%clk 0:01:41.1]} 39... a4 {[%clk 0:00:16.7]} 40. b4 {[%clk 0:01:40.8]} 40...
Rh8 {[%clk 0:00:15.3]} 41. Rdh1 {[%clk 0:01:40.4]} 41... Rxh4 {[%clk 0:00:14.3]}
42. Rxh4 {[%clk 0:01:41.3]} 42... Kf5 {[%clk 0:00:14.1]} 43. Kf3 {[%clk
0:01:41.4]} 43... b5 {[%clk 0:00:09.6]} 44. c5 {[%clk 0:01:39.9]} 44... dxc5
{[%clk 0:00:08.8]} 45. bxc5 {[%clk 0:01:40.8]} 45... Rd8 {[%clk 0:00:06.7]} 46.
Rf4+ {[%clk 0:01:36.7]} 46... Kg5 {[%clk 0:00:05.5]} 47. Rd4 {[%clk 0:01:36.9]}
47... Kf5 {[%clk 0:00:04.5]} 48. g4+ {[%clk 0:01:36.8]} 48... Kg6 {[%clk
0:00:02]} 49. d6 {[%clk 0:01:36.6]} 49... exd6 {[%clk 0:00:01.4]} 50. cxd6
{[%clk 0:01:36.8]} 1-0

[Event "Late-Titled-Tuesday-Blitz-January-16-2024"]
[Site "Chess.com"]
[Date "2024.01.16"]
[Round "10"]
[White "dorpato"]
[Black "Viktor_Poddubnyi"]
[Result "0-1"]
[WhiteElo "2125"]
[BlackElo "2252"]
[TimeControl "180+1"]
[EndTime "15:55:53 PST"]
[Termination "Viktor_Poddubnyi won by checkmate"]

1. e4 {[%clk 0:02:58.1]} 1... g6 {[%clk 0:03:00.2]} 2. d4 {[%clk 0:02:57.7]}
2... Bg7 {[%clk 0:03:00.6]} 3. Nf3 {[%clk 0:02:58]} 3... d6 {[%clk 0:03:00.4]}
4. Nc3 {[%clk 0:02:58.3]} 4... Nf6 {[%clk 0:02:59]} 5. Bc4 {[%clk 0:02:57.2]}
5... c6 {[%clk 0:02:54.5]} 6. a4 {[%clk 0:02:56.9]} 6... d5 {[%clk 0:02:53.9]}
7. exd5 {[%clk 0:02:51.9]} 7... cxd5 {[%clk 0:02:54.8]} 8. Bb5+ {[%clk
0:02:49.4]} 8... Bd7 {[%clk 0:02:54.3]} 9. O-O {[%clk 0:02:44.3]} 9... O-O
{[%clk 0:02:54]} 10. Bg5 {[%clk 0:02:37.7]} 10... a6 {[%clk 0:02:50.8]} 11. Bxd7
{[%clk 0:02:35.3]} 11... Nbxd7 {[%clk 0:02:50.1]} 12. Qd2 {[%clk 0:02:35.9]}
12... e6 {[%clk 0:02:48]} 13. Bh6 {[%clk 0:02:29]} 13... Nb6 {[%clk 0:02:48]}
14. Bxg7 {[%clk 0:02:27.7]} 14... Kxg7 {[%clk 0:02:48.9]} 15. b3 {[%clk
0:02:26.9]} 15... Rc8 {[%clk 0:02:48.3]} 16. Ne2 {[%clk 0:02:26.2]} 16... Qc7
{[%clk 0:02:47.1]} 17. Rac1 {[%clk 0:02:22]} 17... Ne4 {[%clk 0:02:46.2]} 18.
Qd3 {[%clk 0:02:19.6]} 18... Nd7 {[%clk 0:02:45.9]} 19. Nd2 {[%clk 0:02:15.3]}
19... Nxd2 {[%clk 0:02:37.4]} 20. Qxd2 {[%clk 0:02:14.8]} 20... Nf6 {[%clk
0:02:37.1]} 21. f3 {[%clk 0:02:07.7]} 21... Qb6 {[%clk 0:02:36.8]} 22. Kh1
{[%clk 0:02:00.6]} 22... Rc6 {[%clk 0:02:37.1]} 23. g4 {[%clk 0:01:58.1]} 23...
Rfc8 {[%clk 0:02:36.2]} 24. Ng3 {[%clk 0:01:52.7]} 24... Qc7 {[%clk 0:02:26.4]}
25. Rf2 {[%clk 0:01:43]} 25... Ne8 {[%clk 0:02:04.8]} 26. Qg5 {[%clk 0:01:39.2]}
26... Qd8 {[%clk 0:01:52.1]} 27. Nh5+ {[%clk 0:01:15.6]} 27... Kh8 {[%clk
0:01:51]} 28. Qh6 {[%clk 0:00:58.2]} 28... Qe7 {[%clk 0:01:38.7]} 29. Ng3 {[%clk
0:00:46.3]} 29... Nd6 {[%clk 0:01:32.1]} 30. h4 {[%clk 0:00:42.2]} 30... Qf6
{[%clk 0:01:25.6]} 31. Rd2 {[%clk 0:00:33.8]} 31... Qxf3+ {[%clk 0:01:22.6]} 32.
Kh2 {[%clk 0:00:30.3]} 32... Qxg4 {[%clk 0:01:22.6]} 33. h5 {[%clk 0:00:18.5]}
33... Qxg3+ {[%clk 0:01:16.2]} 34. Kxg3 {[%clk 0:00:18.2]} 34... Nf5+ {[%clk
0:01:16.6]} 35. Kg4 {[%clk 0:00:18.4]} 35... Nxh6+ {[%clk 0:01:17]} 36. Kg5
{[%clk 0:00:18.6]} 36... Nf5 {[%clk 0:01:16.4]} 37. hxg6 {[%clk 0:00:18.2]}
37... fxg6 {[%clk 0:01:10.8]} 38. Kf6 {[%clk 0:00:17.6]} 38... Rf8+ {[%clk
0:01:09.3]} 39. Ke5 {[%clk 0:00:17.4]} 39... Kg7 {[%clk 0:01:08.6]} 40. Rh1
{[%clk 0:00:16.5]} 40... Ng3 {[%clk 0:01:04.4]} 41. Rg1 {[%clk 0:00:13.1]} 41...
Rf5# {[%clk 0:01:04.5]} 0-1